fUSD/lending_fUSD_20240404
["ID","MTS","AMOUNT","RATE_DAILY","PERIOD"]
[321451557,1712197843243,-516.0,0.00053835,120]
[321451558,1712197843252,-266.94,0.00053852,2]
[321451559,1712197843262,-2110.0,0.00053852,15]
[321451560,1712197843272,-150.0,0.00053873,7]
[321451561,1712197843281,-150.0,0.00053902,2]
[321451562,1712197843291,-150.24195427,0.00053918,120]
[321451563,1712197843300,-152.0,0.00053922,14]
[321451564,1712197843309,-157.35955129,0.00053938,60]
[321451565,1712197843319,-150.0,0.00053944,7]
[321451566,1712197843328,-162.27289693,0.00053945,120]
[321451567,1712197843338,-156.17754037,0.00053951,60]
[321451568,1712197843347,-298.67370889,0.00053952,120]
[321451569,1712197843356,-1826.91217,0.00053952,30]
[321451570,1712197843366,-157.35955129,0.00053955,60]
[321451571,1712197843375,-500.0,0.00053972,35]
[321451572,1712197843384,-245.69075527,0.00053981,14]
[321451573,1712197843393,-150.0,0.00053999,15]
[321451574,1712197843402,-500000.0,0.00054,2]
[321451575,1712197843412,-697.12471798,0.00054,30]
[321451576,1712197843421,-489.79,0.00054,120]
[321451577,1712197843430,-700.0,0.00054,120]
[321451578,1712197843439,-879.0,0.00054,102]
[321451579,1712197843449,-157.35955141,0.00054001,60]
[321451580,1712197843458,-150.0,0.00054021,7]
[321451581,1712197843467,-150.0,0.00054024,7]
[321451582,1712197843478,-150.0,0.00054028,7]
[321451583,1712197843488,-150.0,0.00054036,7]
[321451584,1712197843497,-2187.91,0.00054044,90]
[321451585,1712197843507,-150.0,0.00054074,7]
[321451586,1712197843516,-800.0,0.00054078,30]
[321451587,1712197843525,-150.0,0.00054086,7]
[321451588,1712197843534,-150.0,0.00054096,7]
[321451589,1712197843544,-150.0,0.000541,11]
[321451590,1712197843553,-2000.0,0.000541,120]
[321451591,1712197843563,-500.04043963,0.000541,120]
[321451592,1712197843572,-150.24195427,0.00054137,120]
[321451593,1712197843581,-151.0,0.00054137,120]
[321451594,1712197843591,-1826.91217,0.00054152,30]
[321451595,1712197843600,-150.0,0.00054158,7]
[321451596,1712197843609,-22208.31125977,0.0005419,120]
[321451597,1712197843618,-157.040411,0.00054194,115]
[321451598,1712197843627,-421.25924,0.00054199,69]
[321451599,1712197843637,-500.0,0.000542,120]
[321451600,1712197843646,-152.22,0.000542,7]
[321451601,1712197843656,-152.22,0.000542,7]
[321451602,1712197843665,-152.22,0.000542,7]
[321451603,1712197843674,-152.22,0.000542,7]
[321451604,1712197843684,-152.22,0.000542,7]
[321451605,1712197843693,-152.22,0.000542,7]
[321451606,1712197843702,-152.22,0.000542,7]
[321451607,1712197843712,-152.22,0.000542,7]
[321451608,1712197843722,-152.22,0.000542,7]
[321451609,1712197843732,-152.22,0.000542,7]
[321451610,1712197843742,-2929.56,0.000542,7]
[321451611,1712197843751,-2929.56,0.000542,7]
[321451612,1712197843761,-2929.56,0.000542,7]
[321451613,1712197843770,-2929.56,0.000542,7]
[321451614,1712197843779,-2929.56,0.000542,7]
[321451615,1712197843788,-2929.56,0.000542,7]
[321451616,1712197843797,-2929.56,0.000542,7]
[321451617,1712197843807,-2929.56,0.000542,7]
[321451618,1712197843816,-2929.56,0.000542,7]
[321451619,1712197843825,-2929.56,0.000542,7]
[321451620,1712197843835,-2929.56,0.000542,7]
[321451621,1712197843845,-2929.56,0.000542,7]
[321451622,1712197843854,-2929.56,0.000542,7]
[321451623,1712197843864,-2929.56,0.000542,7]
[321451624,1712197843873,-2929.56,0.000542,7]
[321451625,1712197843883,-2929.56,0.000542,7]
[321451626,1712197843893,-2929.56,0.000542,7]
[321451627,1712197843902,-2929.56,0.000542,7]
[321451628,1712197843911,-2929.56,0.000542,7]
[321451629,1712197843921,-2929.56,0.000542,7]
[321451630,1712197843931,-2000.0,0.000542,120]
[321451631,1712197843940,-150.0,0.00054208,7]
[321451632,1712197843949,-780.01,0.00054246,30]
[321451633,1712197843958,-150.0,0.00054277,7]
[321451634,1712197843967,-150.0,0.00054281,7]
[321451635,1712197843978,-155.37123308,0.00054286,60]
[321451636,1712197843986,-150.0,0.0005429,7]
[321451637,1712197843995,-150.0,0.00054301,7]
[321451638,1712197844004,-2187.91,0.00054317,90]
[321451639,1712197844014,-1596.75,0.00054321,120]
[321451640,1712197844023,-561.62,0.00054344,120]
[321451641,1712197844033,-2110.0,0.00054352,15]
[321451642,1712197844042,-876.3897,0.00054352,7]
[321451643,1712197844051,-150.24195427,0.00054356,120]
[321451644,1712197844060,-150.0,0.00054362,7]
[321451645,1712197844069,-500.0,0.00054383,120]
[321451646,1712197844079,-1500.0,0.00054385,7]
[321451647,1712197844088,-150.0,0.00054388,7]
[321451648,1712197844097,-150.0,0.00054392,7]
[321451649,1712197844108,-2000.0,0.000544,120]
[321451650,1712197844119,-2488.0,0.00054414,7]
[321451651,1712197844128,-150.0,0.00054435,7]
[321451652,1712197844137,-911.6335,0.00054477,10]
[321451653,1712197844146,-150.0,0.0005448,7]
[321451654,1712197844156,-150.0,0.00054482,7]
[321451655,1712197844165,-157.040411,0.00054494,116]
[321451656,1712197844174,-306.8621671,0.00054497,120]
[321451657,1712197844184,-153.89032087,0.00054497,60]
[321451658,1712197844193,-879.0,0.000545,103]
[321451659,1712197844203,-156.17754039,0.00054519,60]
[321451660,1712197844212,-327.52734422,0.0005452,40]
[321451661,1712197844221,-7000.0,0.0005452,120]
[321451662,1712197844231,-150.0,0.00054527,7]
[321451663,1712197844240,-19349.50876886,0.0005455,45]
[321451664,1712197844249,-9674.75438443,0.0005455,45]
[321451665,1712197844259,-170.67025145,0.00054551,45]
[321451666,1712197844269,-162154.34375647,0.00054551,45]
[321451667,1712197844279,-9674.75438443,0.00054551,45]
[321451668,1712197844288,-3385.24826215,0.00054552,45]
[321451669,1712197844297,-172.20220189,0.00054552,45]
[321451670,1712197844306,-1826.91217,0.00054552,30]
[321451671,1712197844315,-360.55013069,0.00054554,45]
[321451672,1712197844324,-19349.50876886,0.00054554,45]
[321451673,1712197844333,-501.52775995,0.00054554,45]
[321451674,1712197844342,-9674.75438443,0.00054555,45]
[321451675,1712197844352,-3385.24826215,0.00054556,45]
[321451676,1712197844361,-255.92864983,0.00054557,45]
[321451677,1712197844370,-489.05120854,0.00054557,45]
[321451678,1712197844380,-3385.24826215,0.00054557,45]
[321451679,1712197844389,-9674.75438443,0.00054558,45]
[321451680,1712197844398,-360.55013069,0.00054558,45]
[321451681,1712197844407,-6770.49652431,0.00054558,45]
[321451682,1712197844416,-9674.75438443,0.00054559,45]
[321451683,1712197844426,-9674.75438443,0.00054559,45]
[321451684,1712197844435,-9674.75438443,0.00054559,45]
[321451685,1712197844444,-255.92864983,0.00054559,45]
[321451686,1712197844453,-172.20220188,0.0005456,45]
[321451687,1712197844462,-3385.24826215,0.0005456,45]
[321451688,1712197844471,-19349.50876886,0.00054561,45]
[321451689,1712197844482,-3385.24826215,0.00054561,45]
[321451690,1712197844491,-258.30330282,0.00054561,45]
[321451691,1712197844500,-9674.75438443,0.00054561,45]
[321451692,1712197844508,-172.20220189,0.00054561,45]
[321451693,1712197844517,-348.07357927,0.00054561,45]
[321451694,1712197844527,-172.20220189,0.00054562,45]
[321451695,1712197844536,-489.05120854,0.00054563,45]
[321451696,1712197844546,-255.92864983,0.00054563,45]
[321451697,1712197844555,-501.52775995,0.00054563,45]
[321451698,1712197844565,-172.20220188,0.00054563,45]
[321451699,1712197844574,-9674.75438443,0.00054564,45]
[321451700,1712197844583,-3385.24826215,0.00054564,45]
[321451701,1712197844592,-9674.75438444,0.00054564,45]
[321451702,1712197844602,-9674.75438443,0.00054565,45]
[321451703,1712197844611,-258.30330282,0.00054565,45]
[321451704,1712197844620,-3385.24826215,0.00054565,45]
[321451705,1712197844631,-255.92864983,0.00054565,45]
[321451706,1712197844640,-150.0,0.00054565,7]
[321451707,1712197844649,-19349.50876886,0.00054565,45]
[321451708,1712197844659,-255.92864983,0.00054566,45]
[321451709,1712197844668,-256.95562393,0.00054566,31]
[321451710,1712197844679,-162154.34375647,0.00054567,45]
[321451711,1712197844688,-489.05120854,0.00054568,45]
[321451712,1712197844698,-360.55013069,0.00054568,45]
[321451713,1712197844707,-6770.4965243,0.00054569,45]
[321451714,1712197844716,-6770.49652431,0.00054569,45]
[321451715,1712197844726,-6770.49652431,0.0005457,45]
[321451716,1712197844735,-172.20220189,0.0005457,45]
[321451717,1712197844745,-172.20220189,0.00054571,45]
[321451718,1712197844754,-9674.75438443,0.00054571,45]
[321451719,1712197844763,-9674.75438443,0.00054571,45]
[321451720,1712197844772,-489.05120854,0.00054572,45]
[321451721,1712197844782,-258.30330282,0.00054573,45]
[321451722,1712197844791,-9674.75438443,0.00054573,45]
[321451723,1712197844800,-9674.75438443,0.00054573,45]
[321451724,1712197844809,-172.20220188,0.00054573,45]
[321451725,1712197844818,-348.07357927,0.00054574,45]
[321451726,1712197844828,-3385.24826215,0.00054574,45]
[321451727,1712197844837,-6770.4965243,0.00054574,45]
[321451728,1712197844846,-3385.24826215,0.00054574,45]
[321451729,1712197844856,-3385.24826215,0.00054575,45]
[321451730,1712197844865,-999.84,0.00054575,2]
[321451731,1712197844875,-3385.24826215,0.00054575,45]
[321451732,1712197844884,-23755.0,0.00054575,30]
[321451733,1712197844894,-150.24195427,0.00054575,120]
[321451734,1712197844903,-31713.0,0.00054575,30]
[321451735,1712197844913,-162.27289693,0.00054575,120]
[321451736,1712197844922,-501.52775995,0.00054576,45]
[321451737,1712197844933,-3385.24826215,0.00054576,45]
[321451738,1712197844942,-255.92864983,0.00054576,45]
[321451739,1712197844952,-258.30330282,0.00054576,45]
[321451740,1712197844962,-6770.49652431,0.00054576,45]
[321451741,1712197844972,-6770.49652431,0.00054577,45]
[321451742,1712197844982,-19349.50876886,0.00054577,45]
[321451743,1712197844991,-170.67025145,0.00054577,45]
[321451744,1712197845001,-3385.24826215,0.00054578,45]
[321451745,1712197845010,-9674.75438443,0.00054578,45]
[321451746,1712197845020,-9674.75438444,0.00054579,45]
[321451747,1712197845029,-172.20220189,0.00054579,45]
[321451748,1712197845038,-172.20220189,0.0005458,45]
[321451749,1712197845048,-348.07357927,0.00054581,45]
[321451750,1712197845058,-9674.75438443,0.00054582,45]
[321451751,1712197845068,-9674.75438443,0.00054583,45]
[321451752,1712197845077,-348.07357927,0.00054583,45]
[321451753,1712197845087,-639.82162456,0.00054583,45]
[321451754,1712197845217,-150.0,0.00054584,7]
[321451755,1712197845231,-150.0,0.00054584,14]
[321451756,1712197845241,-3385.24826215,0.00054584,45]
[321451757,1712197845252,-489.05120854,0.00054585,45]
[321451758,1712197845263,-9674.75438443,0.00054585,45]
[321451759,1712197845273,-255.92864983,0.00054585,45]
[321451760,1712197845284,-9674.75438443,0.00054585,45]
[321451761,1712197845294,-162154.34375647,0.00054586,45]
[321451762,1712197845305,-9674.75438443,0.00054586,45]
[321451763,1712197845316,-501.52775995,0.00054586,45]
[321451764,1712197845327,-9674.75438443,0.00054586,45]
[321451765,1712197845338,-639.82162456,0.00054586,45]
[321451766,1712197845360,-172.20220188,0.00054587,45]
[321451767,1712197845399,-3385.24826215,0.00054587,45]
[321451768,1712197845444,-258.30330282,0.00054588,45]
[321451769,1712197845496,-3385.24826215,0.00054588,45]
[321451770,1712197845519,-348.07357927,0.00054589,45]
[321451771,1712197845530,-501.52775995,0.00054589,45]
[321451772,1712197845540,-6770.4965243,0.00054589,45]
[321451773,1712197845551,-2187.91,0.0005459,90]
[321451774,1712197845561,-172.20220189,0.0005459,45]
[321451775,1712197845571,-501.52775995,0.00054591,45]
[321451776,1712197845581,-360.55013069,0.00054592,45]
[321451777,1712197845591,-170.67025145,0.00054593,45]
[321451778,1712197845601,-639.82162456,0.00054594,45]
[321451779,1712197845611,-6952.47090432,0.00054594,7]
[321451780,1712197845621,-9674.75438444,0.00054594,45]
[321451781,1712197845631,-360.55013069,0.00054594,45]
[321451782,1712197845641,-3385.24826215,0.00054595,45]
[321451783,1712197845651,-258.30330282,0.00054595,45]
[321451784,1712197845661,-360.55013069,0.00054597,45]
[321451785,1712197845671,-9674.75438443,0.00054597,45]
[321451786,1712197845682,-255.92864983,0.00054597,45]
[321451787,1712197845691,-3385.24826215,0.00054598,45]
[321451788,1712197845701,-19349.50876886,0.00054598,45]
[321451789,1712197845711,-160.0,0.00054598,10]
[321451790,1712197845721,-9674.75438443,0.00054599,45]
[321451791,1712197845736,-9674.75438444,0.00054599,45]
[321451792,1712197845746,-255.92864983,0.00054599,45]
[321451793,1712197845756,-300.0,0.000546,14]
[321451794,1712197845766,-150.0,0.000546,12]
[321451795,1712197845775,-2000.0,0.000546,120]
[321451796,1712197845785,-348.07357927,0.000546,45]
[321451797,1712197845794,-9674.75438443,0.000546,45]
[321451798,1712197845804,-3385.24826215,0.000546,45]
[321451799,1712197845814,-489.05120854,0.00054601,45]
[321451800,1712197845824,-19349.50876886,0.00054602,45]
[321451801,1712197845834,-3385.24826215,0.00054602,45]
[321451802,1712197845844,-172.20220189,0.00054602,45]
[321451803,1712197845854,-9674.75438443,0.00054602,45]
[321451804,1712197845863,-3385.24826215,0.00054602,45]
[321451805,1712197845872,-1149.71151491,0.00054602,45]
[321451807,1712197846364,-8525.04286952,0.00054602,45]
[321451808,1712197846374,-9674.75438443,0.00054603,45]
[321451809,1712197846384,-305.0,0.00054603,30]
[321451810,1712197846394,-9674.75438443,0.00054603,45]
[321451811,1712197846403,-255.92864983,0.00054603,45]
[321451812,1712197846412,-170.67025145,0.00054603,45]
[321451813,1712197846422,-639.82162456,0.00054604,45]
[321451814,1712197846431,-255.92864983,0.00054604,45]
[321451815,1712197846440,-3385.24826215,0.00054605,45]
[321451816,1712197846450,-6770.4965243,0.00054606,45]
[321451817,1712197846459,-501.52775995,0.00054606,45]
[321451818,1712197846469,-3385.24826215,0.00054607,45]
[321451819,1712197846480,-162154.34375647,0.00054607,45]
[321451820,1712197846490,-150.0,0.00054607,7]
[321451821,1712197846500,-255.92864983,0.00054607,45]
[321451822,1712197846510,-9674.75438444,0.00054607,45]
[321451823,1712197846519,-160.0,0.00054607,10]
[321451824,1712197846528,-360.55013069,0.00054607,45]
[321451825,1712197846539,-9674.75438443,0.00054608,45]
[321451826,1712197846549,-9674.75438443,0.00054608,45]
[321451827,1712197846559,-172.20220189,0.00054609,45]
[321451828,1712197846568,-151.05748626,0.00054609,60]
[321451829,1712197846577,-9674.75438443,0.00054609,45]
[321451830,1712197846587,-360.55013069,0.00054609,45]
[321451831,1712197846596,-255.92864983,0.00054609,45]
[321451832,1712197846606,-155.32832366,0.0005461,30]
[321451833,1712197846615,-1500.0,0.0005461,7]
[321451834,1712197846625,-3385.24826215,0.00054611,45]
[321451835,1712197846634,-3385.24826215,0.00054611,45]
[321451836,1712197846643,-172.20220189,0.00054611,45]
[321451837,1712197846653,-6770.49652431,0.00054612,45]
[321451838,1712197846663,-172.20220188,0.00054612,45]
[321451839,1712197846672,-501.52775995,0.00054613,45]
[321451840,1712197846682,-6770.4965243,0.00054614,45]
[321451841,1712197846692,-9674.75438443,0.00054614,45]
[321451842,1712197846701,-639.82162456,0.00054614,45]
[321451843,1712197846711,-170.67025145,0.00054615,45]
[321451844,1712197846721,-264130.22119824,0.00054615,36]
[321451845,1712197848055,-222.32730151,0.0004337,2]
[321451846,1712197848064,-166.86503383,0.000509,120]
[321451847,1712197848074,-150.0,0.00052611,7]
[321451848,1712197848083,-146.9134323,0.00052971,7]
[321451849,1712197848095,-3.0865677,0.00052971,7]
[321451850,1712197848106,-150.0,0.00053315,7]
[321451851,1712197848117,-150.0,0.00053849,7]
[321451852,1712197848128,-150.0,0.00053969,7]
[321451853,1712197848138,-507.90182095,0.00054044,90]
[321451854,1712197848184,-360.08633483,0.00054044,90]
[321451855,1712197848313,-150.0,0.00053564,7]
[321451856,1712197848323,-320.34127926,0.00054044,90]
[321451857,1712197848336,-600.00606,0.00054044,90]
[321451858,1712197848349,-399.57450496,0.00054044,90]
[321451859,1712197848359,-150.0,0.00054285,7]
[321451860,1712197848369,-2187.91,0.00054317,90]
[321451861,1712197848379,-2187.91,0.0005459,90]
[321451862,1712197848389,-6455.38389416,0.00054615,36]
[321451863,1712197848418,-150.0,0.00052176,7]
[321451864,1712197848428,-150.0,0.0005219,7]
[321451865,1712197848437,-197.86715934,0.00054615,36]
[321451866,1712197848450,-4024.40605298,0.00054615,36]
[321451867,1712197848471,-150.0,0.00052366,7]
[321451868,1712197848484,-150.0,0.00054464,7]
[321451869,1712197848494,-891.88699385,0.00054615,36]
[321451870,1712197848510,-347.47550612,0.00054615,36]
[321451871,1712197848522,-1043.68807452,0.00054615,36]
[321451872,1712197848533,-1716.05999985,0.00054615,36]
[321451873,1712197848546,-2664.68263448,0.00054615,36]
[321451874,1712197848770,-744.5,0.00054615,36]
[321451875,1712197848792,-150.0,0.00052632,7]
[321451876,1712197848802,-150.0,0.00053887,7]
[321451877,1712197848812,-55.00576016,0.00054615,36]
[321451878,1712197848879,-3839.01440059,0.00054615,36]
[321451879,1712197848891,-8266.75014381,0.00054615,36]
[321451880,1712197848903,-2301.92000906,0.00054615,36]
[321451881,1712197849756,-222.32730151,0.00045105,2]
[321451882,1712197849765,-150.0,0.00052289,7]
[321451883,1712197849775,-150.0,0.00052342,7]
[321451884,1712197849785,-150.0,0.00052366,7]
[321451885,1712197849794,-150.0,0.00052402,7]
[321451886,1712197849804,-45.67975436,0.00052691,7]
[321451887,1712197849816,-104.32024564,0.00052691,7]
[321451888,1712197849826,-150.0,0.00052786,7]
[321451889,1712197849835,-150.0,0.00052908,7]
[321451890,1712197849845,-150.0,0.00053097,7]
[321451891,1712197849854,-150.0,0.00053118,7]
[321451892,1712197849863,-24.46181192,0.00053228,7]
[321451893,1712197849883,-125.53818808,0.00053228,7]
[321451894,1712197849893,-150.0,0.0005323,7]
[321451895,1712197849902,-150.0,0.00053266,7]
[321451896,1712197849912,-150.0,0.00053302,7]
[321451897,1712197849921,-150.0,0.00053443,7]
[321451898,1712197849930,-150.0,0.00053465,7]
[321451899,1712197849940,-150.0,0.00053642,7]
[321451900,1712197849949,-150.0,0.00053866,7]
[321451901,1712197849959,-150.0,0.00053894,7]
[321451902,1712197849969,-150.0,0.00054024,7]
[321451903,1712197849979,-150.0,0.00054148,7]
[321451904,1712197849988,-150.0,0.00054259,7]
[321451905,1712197849998,-150.0,0.00054351,7]
[321451906,1712197850008,-150.0,0.00054614,7]
[321451907,1712197850018,-9189.58655156,0.00054615,36]
[321451908,1712198147292,432.0,0.00040254,30]
[321451913,1712198807284,250.0,0.00023,3]
[321451914,1712198835111,-615.83031697,0.00023999,2]
[321451915,1712198835133,-225.13344412,0.00024,2]
[321451916,1712198835155,-202.72541209,0.00025,3]
[321451946,1712199032484,-97.27458791,0.00025,3]
[321451948,1712199032495,-152.72541209,0.000269,2]
[321451952,1712199032542,-195.17016549,0.000269,2]
[321451954,1712199032553,-1906.07103451,0.00026999,2]
[321451956,1712199032567,-425.70762963,0.00026999,2]
[321451958,1712199032580,-269.24091745,0.00026999,2]
[321451960,1712199032592,-350.0,0.00027,3]
[321451962,1712199032603,-347.89557757,0.000279,2]
[321451964,1712199032613,-347.89557757,0.00028899,2]
[321451965,1712199032623,-400.0,0.00029,3]
[321451967,1712199032634,-405.20748901,0.0003,4]
[321451969,1712199032644,-431.53794011,0.0003,2]
[321451974,1712199032692,-300.55290628,0.0003,2]
[321451977,1712199032716,-978.70035845,0.0003,2]
[321452078,1712199037769,-1495.489556,0.0003,2]
[321452079,1712199037780,-606.74427312,0.0003,4]
[321452080,1712199037789,-1437.69723528,0.0003024,28]
[321452081,1712199037798,-450.0,0.00031,3]
[321452082,1712199037808,-499.99,0.00032,2]
[321452083,1712199037817,-331.73521384,0.00032,4]
[321452084,1712199037827,-156.25,0.00032877,2]
[321452085,1712199037837,-156.25,0.00032877,2]
[321452086,1712199037847,-500.0,0.00033,3]
[321452087,1712199037857,-550.0,0.00035,3]
[321452088,1712199037867,-1281.5331215,0.00035,4]
[321452089,1712199037877,-827.41117444,0.00038499,4]
[321452090,1712199037886,-490.11815053,0.000385,4]
[321452091,1712199037896,-2952.14781287,0.000388,2]
[321452092,1712199037905,-4065.34553289,0.000389,15]
[321452093,1712199037915,-764.703,0.000399,2]
[321452094,1712199037924,-3664.75384173,0.0003999,2]
[321452095,1712199037934,-5758.8947196,0.0004,4]
[321452096,1712199037943,-192.76675003,0.0004,2]
[321452097,1712199037953,-8653.28101531,0.0004,4]
[321452098,1712199037965,-1965.69093901,0.0004,4]
[321452099,1712199037985,-1710.73355,0.0004,4]
[321452100,1712199038000,-2834.01125119,0.0004,4]
[321452101,1712199038013,-3026.69868828,0.0004,4]
[321452102,1712199038041,-3913.30828941,0.0004,4]
[321452103,1712199038052,-255.79029936,0.0004021,30]
[321452104,1712199038063,-1666.46675715,0.0004021,4]
[321452105,1712199038073,-900.5668133,0.0004021,10]
[321452106,1712199038082,-150.0,0.0004024,2]
[321452107,1712199038091,-150.0,0.0004024,2]
[321452108,1712199038101,-200.0,0.0004024,2]
[321452109,1712199038110,-1945.0,0.00040254,30]
[321452110,1712199038120,-3353.30355716,0.00040254,4]
[321452111,1712199038129,-200.0,0.00040254,2]
[321452112,1712199038139,-389.43740372,0.00040254,15]
[321452113,1712199038148,-653.27182698,0.00040254,30]
[321452114,1712199038158,-175.27557722,0.00040254,2]
[321452115,1712199038167,-1014.08,0.000406,2]
[321452116,1712199038177,-1208.460029,0.000407,34]
[321452117,1712199038186,-1014.08,0.00041495,2]
[321452118,1712199038196,-1014.08,0.0004239,2]
[321452119,1712199038205,-1014.08,0.00043285,2]
[321452120,1712199038214,-156.25,0.00043288,2]
[321452121,1712199038224,-160.16,0.00043804,2]
[321452122,1712199038233,-162.66,0.00043836,2]
[321452124,1712199038243,-200.0,0.00043948,2]
[321452126,1712199038252,-287.32,0.00043973,2]
[321452128,1712199038263,-340.94,0.00044095,2]
[321452130,1712199038272,-191.2,0.00044095,2]
[321452132,1712199038282,-1014.08,0.0004418,2]
[321452134,1712199038292,-500.0,0.00044558,2]
[321452136,1712199038302,-413.43,0.00044779,15]
[321452138,1712199038312,-170.34939039,0.00045,7]
[321452140,1712199038321,-328.47719203,0.00045,4]
[321452142,1712199038330,-1660.049172,0.00045075,2]
[321452144,1712199038340,-4087.073,0.00045157,14]
[321452146,1712199038350,-161.5,0.00045598,2]
[321452148,1712199038359,-172.49,0.00045623,120]
[321452150,1712199038370,-183.0,0.00045776,2]
[321452152,1712199038379,-23900.0,0.00045985,2]
[321452154,1712199038390,-400.0,0.00046004,2]
[321452157,1712199038400,-160.16,0.00046068,2]
[321452159,1712199038410,-595.41,0.00046125,120]
[321452161,1712199038419,-157.26,0.0004631,2]
[321452163,1712199038428,-250.0,0.00046337,112]
[321452165,1712199038438,-600.0,0.00046958,2]
[321452167,1712199038447,-413.43,0.00047519,15]
[321452168,1712199038456,-160.20412195,0.00047936,30]
[321452169,1712199038466,-155.0,0.00048,120]
[321452170,1712199038475,-4869.48288449,0.0004814,44]
[321452171,1712199038484,-160.16,0.00048331,2]
[321452172,1712199038495,-159.10975518,0.00048832,30]
[321452173,1712199038504,-180.0,0.00048864,120]
[321452174,1712199038517,-154.068508,0.00048907,30]
[321452175,1712199038527,-593.83273675,0.0004915,30]
[321452176,1712199038536,-231.48391555,0.0004915,4]
[321452177,1712199038546,-151.05748626,0.0004926,30]
[321452178,1712199038555,-161.5,0.00049456,2]
[321452179,1712199038564,-175.44,0.00049587,2]
[321452180,1712199038573,-166.74547615,0.000496,2]
[321452181,1712199038583,-171.073355,0.000496,2]
[321452182,1712199038592,-151.05748626,0.00049617,30]
[321452183,1712199038603,-152.19,0.000497,6]
[321452184,1712199038612,-152.19,0.000497,6]
[321452185,1712199038623,-152.19,0.000497,6]
[321452186,1712199038632,-2138.53,0.000497,6]
[321452187,1712199038642,-2138.53,0.000497,6]
[321452188,1712199038651,-2138.53,0.000497,6]
[321452189,1712199038661,-2138.53,0.000497,6]
[321452190,1712199038671,-2138.53,0.000497,6]
[321452191,1712199038681,-2138.53,0.000497,6]
[321452192,1712199038691,-2138.53,0.000497,6]
[321452193,1712199038701,-2138.53,0.000497,6]
[321452194,1712199038711,-2138.53,0.000497,6]
[321452195,1712199038720,-2138.53,0.000497,6]
[321452196,1712199038730,-2138.53,0.000497,6]
[321452197,1712199038739,-2138.53,0.000497,6]
[321452198,1712199038749,-2138.53,0.000497,6]
[321452199,1712199038758,-2138.53,0.000497,6]
[321452200,1712199038768,-2138.53,0.000497,6]
[321452201,1712199038778,-2138.53,0.000497,6]
[321452202,1712199038787,-2138.53,0.000497,6]
[321452203,1712199038797,-2138.53,0.000497,6]
[321452204,1712199038807,-2138.53,0.000497,6]
[321452205,1712199038816,-2138.53,0.000497,6]
[321452206,1712199038826,-155.37123312,0.00049911,30]
[321452207,1712199038835,-27100.9070143,0.0005,4]
[321452208,1712199038845,-158.99928242,0.00050007,60]
[321452209,1712199038855,-171.073355,0.00050257,2]
[321452210,1712199038864,-413.43,0.00050259,120]
[321452211,1712199038873,-160.20412196,0.00050325,60]
[321452212,1712199038882,-155.41052794,0.00050538,60]
[321452213,1712199038892,-166.74547613,0.00050563,2]
[321452214,1712199038902,-160.16,0.00050595,2]
[321452215,1712199038912,-560.73809275,0.00050897,4]
[321452216,1712199038922,-185.07730923,0.00050898,4]
[321452217,1712199039145,-171.073355,0.00050915,2]
[321452218,1712199039171,-166.74547613,0.00051525,2]
[321452219,1712199039180,-171.073355,0.00051572,2]
[321452220,1712199039190,-400.0,0.00051755,120]
[321452221,1712199039199,-3705.76200788,0.00052,120]
[321452222,1712199039209,-152.19,0.00052,7]
[321452223,1712199039219,-152.19,0.00052,7]
[321452224,1712199039229,-152.19,0.00052,7]
[321452225,1712199039238,-152.19,0.00052,7]
[321452226,1712199039248,-152.19,0.00052,7]
[321452227,1712199039257,-152.19,0.00052,7]
[321452228,1712199039269,-2138.53,0.00052,7]
[321452229,1712199039278,-2138.53,0.00052,7]
[321452230,1712199039288,-2138.53,0.00052,7]
[321452231,1712199039297,-2138.53,0.00052,7]